fUSD/lending_fUSD_20260513
["ID","MTS","AMOUNT","RATE_DAILY","PERIOD"]
[422142820,1778617846000,-151.0,0.00027397,2]
[422142823,1778617846000,-151.0,0.00027397,2]
[422142825,1778617846000,-151.0,0.00027397,2]
[422142813,1778617846000,-151.0,0.00027397,2]
[422142859,1778617846000,-175.97,0.00028,2]
[422142861,1778617846000,-175.97,0.00028,2]
[422142856,1778617846000,-214.86625456,0.00028,10]
[422142887,1778617846000,-225.902096,0.00028767,7]
[422142891,1778617846000,-225.902096,0.00028767,7]
[422142890,1778617846000,-225.902096,0.00028767,7]
[422142902,1778617846000,-150.0,0.00029589,2]
[422142901,1778617846000,-152.0,0.00029512,2]
[422142892,1778617846000,-225.902096,0.00028767,7]
[422142893,1778617846000,-225.902096,0.00028767,7]
[422142894,1778617846000,-225.902086,0.00028767,7]
[422142895,1778617846000,-168.93,0.00028804,3]
[422142896,1778617846000,-200000.83820517,0.00029,2]
[422142898,1778617846000,-152.0,0.00029037,2]
[422142897,1778617846000,-2034.63808283,0.00029,7]
[422142899,1778617846000,-150.0,0.00029129,2]
[422142900,1778617846000,-168.0,0.00029129,2]
[422142914,1778617846000,-1201.0018014,0.00029995,2]
[422142911,1778617846000,-2973.3394388,0.00029995,2]
[422142903,1778617846000,-150.0,0.00029589,2]
[422142908,1778617846000,-152.0,0.00029626,2]
[422142907,1778617846000,-582.09911173,0.00029617,2]
[422142855,1778617846000,-500.0,0.000278,7]
[422142905,1778617846000,-272.0,0.00029589,2]
[422142913,1778617846000,-492.3429841,0.00029995,2]
[422142910,1778617846000,-75235.96392217,0.000299,2]
[422142912,1778617846000,-1585.1813682,0.00029995,2]
[422142909,1778617846000,-150.0,0.000297,30]
[422142888,1778617846000,-225.902096,0.00028767,7]
[422142886,1778617846000,-225.902096,0.00028767,7]
[422142906,1778617846000,-237.0,0.00029592,2]
[422142880,1778617846000,-225.902096,0.00028767,7]
[422142881,1778617846000,-225.902096,0.00028767,7]
[422142857,1778617846000,-150.0,0.00028,60]
[422142858,1778617846000,-600.0,0.00028,2]
[422142864,1778617846000,-150.0,0.00028025,2]
[422142860,1778617846000,-175.97,0.00028,2]
[422142862,1778617846000,-150.0,0.00028025,2]
[422142865,1778617846000,-150.0,0.00028025,2]
[422142867,1778617846000,-150.0,0.00028025,2]
[422142869,1778617846000,-905.86,0.00028274,7]
[422142870,1778617846000,-184.49,0.00028493,2]
[422142871,1778617846000,-152.0,0.00028604,3]
[422142866,1778617846000,-150.0,0.00028025,2]
[422142876,1778617846000,-225.902096,0.00028767,7]
[422142863,1778617846000,-150.0,0.00028025,2]
[422142873,1778617846000,-150.0,0.00028696,2]
[422142868,1778617846000,-191.0,0.00028025,2]
[422142882,1778617846000,-225.902096,0.00028767,7]
[422142885,1778617846000,-225.902096,0.00028767,7]
[422142889,1778617846000,-225.902096,0.00028767,7]
[422142883,1778617846000,-225.902096,0.00028767,7]
[422142878,1778617846000,-225.902096,0.00028767,7]
[422142879,1778617846000,-225.902096,0.00028767,7]
[422142875,1778617846000,-225.902096,0.00028767,7]
[422142874,1778617846000,-500.0,0.00028767,2]
[422142877,1778617846000,-225.902096,0.00028767,7]
[422142872,1778617846000,-6050.0,0.00028627,2]
[422142884,1778617846000,-225.902096,0.00028767,7]
[422142943,1778617847000,-150.0,0.00030341,2]
[422142946,1778617847000,-150.0,0.00030341,2]
[422142937,1778617847000,-150.0,0.0003024,2]
[422142940,1778617847000,-173.0,0.0003024,2]
[422142942,1778617847000,-150.0,0.00030341,2]
[422142944,1778617847000,-150.0,0.00030341,2]
[422142945,1778617847000,-150.0,0.00030341,2]
[422142948,1778617847000,-291.0,0.00030341,2]
[422142947,1778617847000,-150.0,0.00030341,2]
[422142951,1778617847000,-150.0,0.00030604,2]
[422142950,1778617847000,-150.0,0.00030604,2]
[422142958,1778617847000,-154.0,0.00030635,30]
[422142949,1778617847000,-150.0,0.00030604,2]
[422142957,1778617847000,-175.0,0.00030635,30]
[422142952,1778617847000,-150.0,0.00030604,2]
[422142953,1778617847000,-150.0,0.00030604,2]
[422142954,1778617847000,-150.0,0.00030604,2]
[422142956,1778617847000,-199.0,0.00030604,2]
[422142941,1778617847000,-150.0,0.00030341,2]
[422142959,1778617847000,-330.0,0.00030635,30]
[422142939,1778617847000,-150.0,0.0003024,2]
[422142922,1778617847000,-905.86,0.00030134,7]
[422142936,1778617847000,-150.0,0.0003024,2]
[422142915,1778617847000,-2796.5366616,0.00029995,2]
[422142918,1778617847000,-2000.0,0.0003,3]
[422142917,1778617847000,-10402.19322433,0.0003,5]
[422142916,1778617847000,-214.86625456,0.0003,7]
[422142919,1778617847000,-650.0,0.0003,2]
[422142920,1778617847000,-193.0,0.0003,14]
[422142921,1778617847000,-181.69,0.00030082,120]
[422142923,1778617847000,-500.0,0.00030137,2]
[422142924,1778617847000,-151.0,0.00030137,7]
[422142927,1778617847000,-151.0,0.00030137,7]
[422142929,1778617847000,-178.58,0.00030137,2]
[422142925,1778617847000,-151.0,0.00030137,7]
[422142930,1778617847000,-200.0,0.00030137,2]
[422142928,1778617847000,-152.225093,0.00030137,7]
[422142931,1778617847000,-857.65102233,0.00030137,2]
[422142934,1778617847000,-150.0,0.0003024,2]
[422142933,1778617847000,-150.0,0.0003024,2]
[422142935,1778617847000,-150.0,0.0003024,2]
[422142932,1778617847000,-665.64,0.000302,7]
[422142938,1778617847000,-150.0,0.0003024,2]
[422142960,1778617847000,-158.0,0.00030642,30]
[422142955,1778617847000,-150.0,0.00030604,2]
[422142963,1778617847000,-272.0,0.00030646,2]
[422142996,1778617847000,-158.0,0.00032642,30]
[422142987,1778617847000,-1251.0,0.00031647,30]
[422142989,1778617847000,-171.02,0.000317,7]
[422142988,1778617847000,-150.0,0.00031696,2]
[422142990,1778617847000,-905.86,0.00031994,7]
[422142992,1778617847000,-200.0,0.00032055,2]
[422142994,1778617847000,-154.0,0.00032635,30]
[422142993,1778617847000,-175.0,0.00032635,30]
[422142991,1778617847000,-700.0,0.00032,2]
[422142995,1778617847000,-330.0,0.00032635,30]
[422142998,1778617847000,-240.0,0.00032642,30]
[422143001,1778617847000,-174.0,0.00032647,30]
[422142999,1778617847000,-178.0,0.00032647,30]
[422143000,1778617847000,-154.0,0.00032647,30]
[422143002,1778617847000,-510.0,0.00032647,30]
[422143005,1778617847000,-215.42801697,0.00032914,120]
[422143003,1778617847000,-1251.0,0.00032647,30]
[422143004,1778617847000,-168.0724151,0.00032876,2]
[422142964,1778617847000,-178.0,0.00030647,30]
[422142986,1778617847000,-510.0,0.00031647,30]
[422142985,1778617847000,-174.0,0.00031647,30]
[422142997,1778617847000,-174.0,0.00032642,30]
[422142977,1778617847000,-175.0,0.00031635,30]
[422142979,1778617847000,-330.0,0.00031635,30]
[422142962,1778617847000,-240.0,0.00030642,30]
[422142969,1778617847000,-2390.49,0.000308,14]
[422142970,1778617847000,-349.33688217,0.00031,5]
[422142971,1778617847000,-200.0,0.00031096,2]
[422142966,1778617847000,-174.0,0.00030647,30]
[422142961,1778617847000,-174.0,0.00030642,30]
[422142968,1778617847000,-1251.0,0.00030647,30]
[422142965,1778617847000,-154.0,0.00030647,30]
[422142973,1778617847000,-152.0,0.00031108,4]
[422142967,1778617847000,-510.0,0.00030647,30]
[422142972,1778617847000,-356.66,0.00031096,2]
[422142983,1778617847000,-178.0,0.00031647,30]
[422142974,1778617847000,-1000.0,0.000315,7]
[422142975,1778617847000,-500.0,0.00031507,2]
[422142976,1778617847000,-6050.0,0.00031627,2]
[422142981,1778617847000,-174.0,0.00031642,30]
[422142982,1778617847000,-240.0,0.00031642,30]
[422142978,1778617847000,-154.0,0.00031635,30]
[422142984,1778617847000,-154.0,0.00031647,30]
[422142980,1778617847000,-158.0,0.00031642,30]
[422143045,1778617848000,-1251.0,0.00033647,30]
[422143047,1778617848000,-42110.0,0.00033671,60]
[422143050,1778617848000,-905.86,0.00033854,14]
[422143046,1778617848000,-41213.0,0.00033652,60]
[422143051,1778617848000,-350.0,0.00033973,5]
[422143039,1778617848000,-174.0,0.00033642,30]
[422143038,1778617848000,-158.0,0.00033642,30]
[422143040,1778617848000,-240.0,0.00033642,30]
[422143036,1778617848000,-154.0,0.00033635,30]
[422143052,1778617848000,-1000.0,0.00034481,2]
[422143035,1778617848000,-175.0,0.00033635,30]
[422143042,1778617848000,-154.0,0.00033647,30]
[422143044,1778617848000,-510.0,0.00033647,30]
[422143057,1778617848000,-154.0,0.00034635,30]
[422143054,1778617848000,-181.69,0.00034521,120]
[422143053,1778617848000,-1150.17820742,0.00034481,2]
[422143043,1778617848000,-174.0,0.00033647,30]
[422143049,1778617848000,-393.12549837,0.00033781,7]
[422143055,1778617848000,-2538.431,0.00034627,2]
[422143067,1778617848000,-2390.49,0.000348,14]
[422143059,1778617848000,-158.0,0.00034642,30]
[422143056,1778617848000,-175.0,0.00034635,30]
[422143066,1778617848000,-1251.0,0.00034647,30]
[422143060,1778617848000,-174.0,0.00034642,30]
[422143061,1778617848000,-240.0,0.00034642,30]
[422143065,1778617848000,-510.0,0.00034647,30]
[422143034,1778617848000,-42110.0,0.00033627,60]
[422143048,1778617848000,-42112.0,0.00033716,60]
[422143041,1778617848000,-178.0,0.00033647,30]
[422143015,1778617848000,-41213.0,0.00033109,60]
[422143031,1778617848000,-42110.0,0.00033582,60]
[422143006,1778617848000,-150.0,0.00033,14]
[422143007,1778617848000,-214.86625456,0.00033,30]
[422143010,1778617848000,-350.0,0.00033014,5]
[422143008,1778617848000,-6317.88444376,0.00033,120]
[422143012,1778617848000,-2107.32152606,0.00033059,75]
[422143009,1778617848000,-582.09911173,0.00033,2]
[422143011,1778617848000,-42110.0,0.00033045,60]
[422143064,1778617848000,-174.0,0.00034647,30]
[422143018,1778617848000,-41213.0,0.00033217,60]
[422143014,1778617848000,-665.64,0.000331,7]
[422143016,1778617848000,-42110.0,0.00033134,60]
[422143017,1778617848000,-42110.0,0.00033179,60]
[422143013,1778617848000,-42110.0,0.0003309,60]
[422143025,1778617848000,-42110.0,0.00033403,60]
[422143024,1778617848000,-42110.0,0.00033358,60]
[422143030,1778617848000,-41213.0,0.00033544,60]
[422143019,1778617848000,-42110.0,0.00033224,60]
[422143022,1778617848000,-42110.0,0.00033313,60]
[422143021,1778617848000,-2390.49,0.000333,14]
[422143020,1778617848000,-42110.0,0.00033269,60]
[422143026,1778617848000,-41213.0,0.00033435,60]
[422143028,1778617848000,-42110.0,0.00033492,60]
[422143023,1778617848000,-41213.0,0.00033326,60]
[422143027,1778617848000,-42110.0,0.00033448,60]
[422143029,1778617848000,-42110.0,0.00033537,60]
[422143033,1778617848000,-152.0,0.00033612,5]
[422143032,1778617848000,-151.06936244,0.000336,120]
[422143037,1778617848000,-330.0,0.00033635,30]
[422143063,1778617848000,-158.0,0.00034647,30]
[422143058,1778617848000,-330.0,0.00034635,30]
[422143069,1778617848000,-526.0,0.00035,5]
[422143098,1778617848000,-175.0,0.00035635,30]
[422143099,1778617848000,-154.0,0.00035635,30]
[422143102,1778617848000,-174.0,0.00035642,30]
[422143103,1778617848000,-240.0,0.00035642,30]
[422143101,1778617848000,-158.0,0.00035642,30]
[422143100,1778617848000,-330.0,0.00035635,30]
[422143107,1778617848000,-1251.0,0.00035647,30]
[422143109,1778617848000,-350.0,0.0003589,5]
[422143116,1778617848000,-665.64,0.000361,7]
[422143110,1778617848000,-6012.0,0.00036,5]
[422143113,1778617848000,-1000.0,0.00036048,2]
[422143108,1778617848000,-905.86,0.00035714,30]
[422143119,1778617848000,-1558.112327,0.000365,26]
[422143094,1778617848000,-500.0,0.00035616,7]
[422143111,1778617848000,-214.86625456,0.00036,7]
[422143115,1778617848000,-39401.69669405,0.000361,2]
[422143118,1778617848000,-1583.0,0.000364,11]
[422143114,1778617848000,-1000.0,0.00036048,2]
[422143121,1778617848000,-175.0,0.00036635,30]
[422143120,1778617848000,-238.5881716,0.00036518,2]
[422143124,1778617848000,-158.0,0.00036642,30]
[422143126,1778617848000,-240.0,0.00036642,30]
[422143123,1778617848000,-330.0,0.00036635,30]
[422143122,1778617848000,-154.0,0.00036635,30]
[422143127,1778617848000,-178.0,0.00036647,30]
[422143128,1778617848000,-174.0,0.00036647,30]
[422143062,1778617848000,-178.0,0.00034647,30]
[422143125,1778617848000,-174.0,0.00036642,30]
[422143112,1778617848000,-1000.0,0.00036048,2]
[422143096,1778617848000,-285.31390229,0.00035616,2]
[422143117,1778617848000,-152.0,0.00036117,6]
[422143104,1778617848000,-178.0,0.00035647,30]
[422143068,1778617848000,-350.0,0.00034931,5]
[422143097,1778617848000,-178.58,0.00035616,2]
[422143074,1778617848000,-573.27,0.00035079,30]
[422143077,1778617848000,-1500.0,0.000352,7]
[422143079,1778617848000,-2000.0,0.00035616,30]
[422143080,1778617848000,-500.0,0.00035616,7]
[422143071,1778617848000,-1558.65491597,0.00035,2]
[422143073,1778617848000,-1008.75464268,0.0003505,4]
[422143070,1778617848000,-202.30578908,0.00035,120]
[422143072,1778617848000,-150.0,0.00035,2]
[422143076,1778617848000,-159.0818048,0.00035115,120]
[422143075,1778617848000,-410.3534786,0.00035115,120]
[422143081,1778617848000,-500.0,0.00035616,7]
[422143083,1778617848000,-500.0,0.00035616,7]
[422143078,1778617848000,-155.0,0.00035355,2]
[422143082,1778617848000,-500.0,0.00035616,7]
[422143084,1778617848000,-500.0,0.00035616,7]
[422143106,1778617848000,-510.0,0.00035647,30]
[422143095,1778617848000,-500.0,0.00035616,7]
[422143090,1778617848000,-500.0,0.00035616,7]
[422143091,1778617848000,-500.0,0.00035616,7]
[422143087,1778617848000,-500.0,0.00035616,7]
[422143088,1778617848000,-500.0,0.00035616,7]
[422143105,1778617848000,-174.0,0.00035647,30]
[422143086,1778617848000,-500.0,0.00035616,7]
[422143089,1778617848000,-500.0,0.00035616,7]
[422143092,1778617848000,-500.0,0.00035616,7]
[422143085,1778617848000,-500.0,0.00035616,7]
[422143093,1778617848000,-498.06540057,0.00035616,7]
[422143170,1778617849000,-526.68525169,0.0003717,2]
[422143177,1778617849000,-300.0,0.0003717,2]
[422143176,1778617849000,-300.0,0.0003717,2]
[422143168,1778617849000,-300.0,0.0003717,2]
[422143163,1778617849000,-300.0,0.0003717,2]
[422143164,1778617849000,-527.54022817,0.0003717,2]
[422143167,1778617849000,-348.36222459,0.0003717,2]
[422143162,1778617849000,-300.0,0.0003717,2]
[422143166,1778617849000,-300.45062341,0.0003717,2]
[422143159,1778617849000,-300.0,0.0003717,2]
[422143169,1778617849000,-332.98327946,0.0003717,2]
[422143165,1778617849000,-300.0,0.0003717,2]
[422143179,1778617849000,-300.0,0.0003717,2]
[422143175,1778617849000,-1863.06818771,0.0003717,2]
[422143178,1778617849000,-310.77293504,0.0003717,2]
[422143171,1778617849000,-300.0,0.0003717,2]
[422143173,1778617849000,-864.10865205,0.0003717,2]
[422143174,1778617849000,-300.0,0.0003717,2]
[422143172,1778617849000,-1146.71946024,0.0003717,2]
[422143181,1778617849000,-300.0,0.0003717,2]
[422143182,1778617849000,-576.93890108,0.0003717,2]
[422143183,1778617849000,-300.0,0.0003717,2]
[422143184,1778617849000,-451.72868137,0.0003717,2]
[422143185,1778617849000,-300.0,0.0003717,2]
[422143187,1778617849000,-300.0,0.0003717,2]
[422143188,1778617849000,-483.88780455,0.0003717,2]
[422143156,1778617849000,-599.99999998,0.0003717,2]
[422143180,1778617849000,-300.0,0.0003717,2]
[422143160,1778617849000,-364.41022781,0.0003717,2]
[422143131,1778617849000,-150.14,0.0003669,30]
[422143157,1778617849000,-300.0,0.0003717,2]
[422143186,1778617849000,-300.0,0.0003717,2]
[422143129,1778617849000,-510.0,0.00036647,30]
[422143130,1778617849000,-1251.0,0.00036647,30]
[422143132,1778617849000,-350.0,0.00036849,5]
[422143133,1778617849000,-5648.49680888,0.0003686,2]
[422143136,1778617849000,-2486.293,0.00037093,47]
[422143134,1778617849000,-497.961043,0.00037,120]
[422143135,1778617849000,-1500.0,0.00037,26]
[422143143,1778617849000,-319.0,0.00037156,2]
[422143137,1778617849000,-1332.0,0.00037142,2]
[422143144,1778617849000,-213.12493152,0.00037156,2]
[422143139,1778617849000,-574.5975,0.00037149,2]
[422143138,1778617849000,-2112.6607,0.00037149,2]
[422143158,1778617849000,-492.49408754,0.0003717,2]
[422143141,1778617849000,-1000.0,0.00037151,10]
[422143142,1778617849000,-356.0,0.00037156,2]
[422143146,1778617849000,-300.0,0.0003717,2]
[422143145,1778617849000,-864.10865205,0.0003717,2]
[422143148,1778617849000,-300.0,0.0003717,2]
[422143147,1778617849000,-1863.06818771,0.0003717,2]
[422143152,1778617849000,-300.00000001,0.0003717,2]
[422143154,1778617849000,-483.88780455,0.0003717,2]
[422143153,1778617849000,-300.0,0.0003717,2]
[422143155,1778617849000,-300.0,0.0003717,2]
[422143149,1778617849000,-310.77293505,0.0003717,2]
[422143151,1778617849000,-300.0,0.0003717,2]
[422143150,1778617849000,-300.0,0.0003717,2]
[422143161,1778617849000,-300.0,0.0003717,2]
[422143140,1778617849000,-1546.7072,0.00037149,2]
[422143193,1778617849000,-300.0,0.0003717,2]
[422143250,1778617849000,-300.0,0.0003717,2]
[422143194,1778617849000,-300.0,0.0003717,2]
[422143224,1778617849000,-300.0,0.0003717,2]
[422143228,1778617849000,-300.0,0.0003717,2]
[422143227,1778617849000,-864.10865205,0.0003717,2]
[422143229,1778617849000,-300.0,0.0003717,2]
[422143226,1778617849000,-1146.71946024,0.0003717,2]
[422143225,1778617849000,-300.0,0.0003717,2]
[422143230,1778617849000,-1863.06818771,0.0003717,2]
[422143231,1778617849000,-300.0,0.0003717,2]
[422143232,1778617849000,-300.0,0.0003717,2]
[422143233,1778617849000,-310.77293504,0.0003717,2]
[422143234,1778617849000,-300.0,0.0003717,2]
[422143243,1778617849000,-300.0,0.0003717,2]
[422143240,1778617849000,-300.0,0.0003717,2]
[422143222,1778617849000,-343.84381003,0.0003717,2]
[422143236,1778617849000,-300.0,0.0003717,2]
[422143238,1778617849000,-576.93890108,0.0003717,2]
[422143235,1778617849000,-300.0,0.0003717,2]
[422143237,1778617849000,-300.0,0.0003717,2]
[422143242,1778617849000,-300.0,0.0003717,2]
[422143241,1778617849000,-300.0,0.0003717,2]
[422143239,1778617849000,-451.72868137,0.0003717,2]
[422143246,1778617849000,-300.0,0.0003717,2]
[422143251,1778617849000,-300.0,0.0003717,2]
[422143248,1778617849000,-526.45624893,0.0003717,2]
[422143195,1778617849000,-300.0,0.0003717,2]
[422143247,1778617849000,-300.0,0.0003717,2]
[422143252,1778617849000,-300.0,0.0003717,2]
[422143245,1778617849000,-309.70196001,0.0003717,2]
[422143244,1778617849000,-483.88780455,0.0003717,2]
[422143220,1778617849000,-1911.66155628,0.0003717,2]
[422143249,1778617849000,-1094.29459015,0.0003717,2]
[422143221,1778617849000,-300.0,0.0003717,2]
[422143223,1778617849000,-526.68525168,0.0003717,2]
[422143189,1778617849000,-309.70196001,0.0003717,2]
[422143190,1778617849000,-300.0,0.0003717,2]
[422143192,1778617849000,-1094.29459015,0.0003717,2]
[422143197,1778617849000,-300.0,0.0003717,2]
[422143196,1778617849000,-300.0,0.0003717,2]
[422143202,1778617849000,-300.0,0.0003717,2]
[422143201,1778617849000,-300.0,0.0003717,2]
[422143203,1778617849000,-300.0,0.0003717,2]
[422143204,1778617849000,-300.0,0.0003717,2]
[422143207,1778617849000,-300.0,0.0003717,2]
[422143199,1778617849000,-300.0,0.0003717,2]
[422143198,1778617849000,-599.99999998,0.0003717,2]
[422143206,1778617849000,-300.0,0.0003717,2]
[422143191,1778617849000,-300.94728085,0.0003717,2]
[422143200,1778617849000,-492.49408754,0.0003717,2]
[422143205,1778617849000,-604.21547136,0.0003717,2]
[422143219,1778617849000,-300.0,0.0003717,2]
[422143218,1778617849000,-300.0,0.0003717,2]
[422143209,1778617849000,-527.54022817,0.0003717,2]
[422143211,1778617849000,-725.78568352,0.0003717,2]
[422143214,1778617849000,-300.0,0.0003717,2]
[422143210,1778617849000,-1066.50381929,0.0003717,2]
[422143208,1778617849000,-300.0,0.0003717,2]
[422143213,1778617849000,-300.0,0.0003717,2]
[422143215,1778617849000,-300.45062341,0.0003717,2]
[422143216,1778617849000,-300.0,0.0003717,2]
[422143212,1778617849000,-301.67321972,0.0003717,2]
[422143217,1778617849000,-300.0,0.0003717,2]
[422143284,1778617850000,-853.86030012,0.0003717,2]
[422143296,1778617850000,-1754.96949453,0.0003717,2]
[422143280,1778617850000,-300.0,0.0003717,2]
[422143285,1778617850000,-300.0,0.0003717,2]
[422143287,1778617850000,-300.0,0.0003717,2]
[422143283,1778617850000,-300.0,0.0003717,2]
[422143289,1778617850000,-526.68525168,0.0003717,2]
[422143290,1778617850000,-300.0,0.0003717,2]
[422143288,1778617850000,-343.84381003,0.0003717,2]
[422143291,1778617850000,-300.0,0.0003717,2]
[422143292,1778617850000,-1146.71946024,0.0003717,2]
[422143286,1778617850000,-1911.66155628,0.0003717,2]
[422143299,1778617850000,-300.0,0.0003717,2]
[422143295,1778617850000,-300.0,0.0003717,2]
[422143298,1778617850000,-300.0,0.0003717,2]
[422143293,1778617850000,-300.0,0.0003717,2]
[422143294,1778617850000,-864.10865205,0.0003717,2]
[422143301,1778617850000,-300.0,0.0003717,2]
[422143300,1778617850000,-300.0,0.0003717,2]
[422143305,1778617850000,-300.0,0.0003717,2]
[422143310,1778617850000,-300.0,0.0003717,2]
[422143308,1778617850000,-300.0,0.0003717,2]
[422143309,1778617850000,-440.45546341,0.0003717,2]
[422143281,1778617850000,-300.0,0.0003717,2]
[422143297,1778617850000,-300.0,0.0003717,2]
[422143282,1778617850000,-300.0,0.0003717,2]
[422143266,1778617850000,-300.0,0.0003717,2]
[422143279,1778617850000,-300.0,0.0003717,2]
[422143303,1778617850000,-300.0,0.0003717,2]
[422143256,1778617850000,-300.0,0.0003717,2]
[422143255,1778617850000,-300.0,0.0003717,2]
[422143253,1778617850000,-300.0,0.0003717,2]
[422143254,1778617850000,-300.0,0.0003717,2]
[422143257,1778617850000,-300.0,0.0003717,2]
[422143259,1778617850000,-300.0,0.0003717,2]
[422143268,1778617850000,-300.0,0.0003717,2]
[422143260,1778617850000,-492.49408754,0.0003717,2]
[422143262,1778617850000,-300.0,0.0003717,2]
[422143258,1778617850000,-300.0,0.0003717,2]
[422143277,1778617850000,-300.45062341,0.0003717,2]
[422143263,1778617850000,-300.0,0.0003717,2]
[422143267,1778617850000,-300.0,0.0003717,2]
[422143264,1778617850000,-300.0,0.0003717,2]
[422143274,1778617850000,-725.78568352,0.0003717,2]
[422143271,1778617850000,-893.04482543,0.0003717,2]
[422143275,1778617850000,-301.67321972,0.0003717,2]
[422143273,1778617850000,-300.0,0.0003717,2]
[422143269,1778617850000,-527.54022817,0.0003717,2]
[422143272,1778617850000,-300.0,0.0003717,2]
[422143270,1778617850000,-1066.50381929,0.0003717,2]
[422143276,1778617850000,-300.0,0.0003717,2]
[422143278,1778617850000,-300.0,0.0003717,2]
[422143265,1778617850000,-604.21547136,0.0003717,2]
[422143302,1778617850000,-576.93890108,0.0003717,2]
[422143261,1778617850000,-491.19814231,0.0003717,2]
[422143306,1778617850000,-300.0,0.0003717,2]
[422143343,1778617850000,-301.67321972,0.0003717,2]
[422143344,1778617850000,-300.0,0.0003717,2]
[422143342,1778617850000,-300.0,0.0003717,2]
[422143334,1778617850000,-300.0,0.0003717,2]
[422143336,1778617850000,-527.54022817,0.0003717,2]
[422143340,1778617850000,-300.0,0.0003717,2]
[422143341,1778617850000,-725.78568352,0.0003717,2]
[422143347,1778617850000,-300.0,0.0003717,2]
[422143346,1778617850000,-379.25258747,0.0003717,2]
[422143357,1778617850000,-1146.71946024,0.0003717,2]
[422143349,1778617850000,-300.0,0.0003717,2]
[422143350,1778617850000,-300.0,0.0003717,2]
[422143353,1778617850000,-1911.66155628,0.0003717,2]
[422143363,1778617850000,-300.0,0.0003717,2]
[422143355,1778617850000,-526.68525168,0.0003717,2]
[422143348,1778617850000,-300.0,0.0003717,2]
[422143356,1778617850000,-300.0,0.0003717,2]
[422143352,1778617850000,-300.0,0.0003717,2]
[422143354,1778617850000,-343.84381003,0.0003717,2]
[422143359,1778617850000,-864.10865204,0.0003717,2]
[422143360,1778617850000,-1593.04951522,0.0003717,2]
[422143358,1778617850000,-300.0,0.0003717,2]
[422143362,1778617850000,-310.5745959,0.0003717,2]
[422143361,1778617850000,-300.0,0.0003717,2]
[422143304,1778617850000,-451.72868137,0.0003717,2]
[422143338,1778617850000,-1066.50381929,0.0003717,2]
[422143339,1778617850000,-893.04482543,0.0003717,2]
[422143351,1778617850000,-853.86030012,0.0003717,2]
[422143335,1778617850000,-300.0,0.0003717,2]
[422143337,1778617850000,-300.0,0.0003717,2]
[422143307,1778617850000,-300.0,0.0003717,2]
[422143314,1778617850000,-300.0,0.0003717,2]
[422143311,1778617850000,-483.88780455,0.0003717,2]
[422143313,1778617850000,-300.0,0.0003717,2]
[422143315,1778617850000,-300.0,0.0003717,2]
[422143312,1778617850000,-309.70196001,0.0003717,2]
[422143316,1778617850000,-1094.29459015,0.0003717,2]
[422143320,1778617850000,-300.0,0.0003717,2]
[422143321,1778617850000,-300.0,0.0003717,2]
[422143317,1778617850000,-300.0,0.0003717,2]
[422143319,1778617850000,-300.0,0.0003717,2]
[422143323,1778617850000,-300.0,0.0003717,2]
[422143318,1778617850000,-300.0,0.0003717,2]
[422143322,1778617850000,-300.0,0.0003717,2]